bitfinex/quotes_ETHUSD_20250217
["timestamp","ask_amount","ask_price","bid_price","bid_amount"]
[1739800420271,3.5929,2783.3,2782.8,3.59337]
[1739800420466,3.59778,2783.4,2782.9,3.65517368]
[1739800420672,3.59778,2783.4,2783.0,0.72485437]
[1739800420867,3.59778,2783.4,2783.1,0.06183861]
[1739800421076,0.005,2783.4,2783.1,0.06183861]
[1739800421267,0.005,2783.4,2783.1,3.65487861]
[1739800421500,0.005,2783.4,2783.2,3.59289]
[1739800421705,0.005,2783.4,2783.2,4.4664743]
[1739800421918,0.005,2783.4,2783.2,4.52827038]
[1739800422105,0.005,2783.4,2783.2,0.93538038]
[1739800422286,0.005,2783.4,2783.2,0.06179608]
[1739800422619,3.59285,2783.3,2783.0,0.7631]
[1739800422834,0.005,2783.4,2783.0,0.7631]
[1739800423040,0.005,2783.4,2783.0,4.35626]
[1739800423239,0.005,2783.4,2783.0,5.15123]
[1739800423607,0.005,2783.4,2783.0,0.7631]
[1739800424208,3.59293,2783.3,2783.0,0.7631]
[1739800426041,0.005,2783.4,2783.0,4.35633]
[1739800426206,3.59774,2783.4,2783.0,0.7631]
[1739800427043,3.59774,2783.4,2782.9,3.59333]
[1739800427224,3.59315,2783.1,2782.7,0.7873]
[1739800427536,3.59327,2783.0,2782.7,0.7873]
[1739800428089,3.59306,2783.2,2782.7,4.38091]
[1739800428296,3.5935,2782.8,2782.6,0.71273799]
[1739800428508,7.18709,2782.8,2782.6,0.71273799]
[1739800428743,3.59371,2782.7,2782.4,0.9369]
[1739800429445,3.59371,2782.7,2782.5,0.05943662]
[1739800430241,3.5935,2782.8,2782.5,0.05943662]
[1739800430801,3.59363,2782.7,2782.5,0.05943662]
[1739800430995,3.59376,2782.6,2782.5,0.05943662]
[1739800434414,3.0,2782.8,2782.5,0.05943662]
[1739800434649,3.59376,2782.6,2782.5,0.05943662]
[1739800434813,6.59351,2782.8,2782.5,0.05943662]
[1739800435018,3.59369,2782.7,2782.5,0.05943662]
[1739800435351,3.59363,2782.7,2782.5,0.05943662]
[1739800436156,6.59351,2782.8,2782.5,0.05943662]
[1739800436370,3.59376,2782.6,2782.5,0.05943662]
[1739800437198,7.6669046,2782.8,2782.5,0.05943662]
[1739800437456,3.59369,2782.7,2782.4,0.1496]
[1739800437748,3.59369,2782.7,2782.5,0.05963645]
[1739800438750,6.59354,2782.8,2782.5,0.05963645]
[1739800438944,7.90731661,2784.0,2782.5,0.05963645]
[1739800438945,0.7922,2783.4,2782.6,0.7926]
[1739800439113,3.59314,2783.1,2782.6,4.38629]
[1739800439318,3.59338,2782.9,2782.6,0.8521939]
[1739800439531,3.59363,2782.7,2782.6,0.0595939]
[1739800439848,4.42067,2782.9,2782.4,0.1496]
[1739800440051,3.59347,2782.9,2782.6,0.0595939]
[1739800440249,3.59346,2782.9,2782.4,3.7436]
[1739800440433,3.5935,2782.9,2782.7,0.05955136]
[1739800440628,0.8272,2783.1,2782.4,3.74353]
[1739800440831,6.59344,2782.9,2782.8,0.05950882]
[1739800441019,3.0,2782.9,2782.4,3.74353]
[1739800441356,3.5935,2782.8,2782.5,0.05963645]
[1739800441815,3.0,2782.9,2782.5,0.05963645]
[1739800442013,3.59351,2782.8,2782.5,0.05963645]
[1739800442419,3.5935,2782.8,2782.5,0.05963645]
[1739800442759,3.0,2782.9,2782.5,0.05963645]
[1739800442919,6.59346,2782.9,2782.5,0.05963645]
[1739800443320,3.5935,2782.8,2782.5,0.05963645]
[1739800443848,3.0,2782.9,2782.6,0.769]
[1739800444228,3.0,2782.9,2782.7,0.05973354]
[1739800444617,6.93645603,2783.4,2782.7,0.05973354]
[1739800444833,3.59285,2783.3,2782.8,3.5935]
[1739800445202,3.59285,2783.3,2782.9,0.05951327]
[1739800445408,3.0,2783.3,2782.9,0.05951327]
[1739800445608,3.59302,2783.2,2782.9,0.05951327]
[1739800445807,3.59302,2783.2,2782.7,3.59355]
[1739800446105,3.59302,2783.2,2782.7,4.389184]
[1739800446451,3.59298,2783.3,2782.8,3.65302581]
[1739800446607,0.005,2783.4,2782.8,0.05955581]
[1739800446812,3.59326,2783.0,2782.8,0.05955581]
[1739800447212,3.59326,2783.0,2782.6,0.769]
[1739800447548,3.59313,2783.1,2782.7,3.65316835]
[1739800447749,3.59313,2783.1,2782.7,0.05959835]
[1739800447953,3.5933,2783.0,2782.7,0.05959835]
[1739800448149,3.5935,2782.8,2782.7,0.05959835]
[1739800448319,3.59337,2782.9,2782.7,0.05959835]
[1739800448855,7.18684,2782.9,2782.7,0.05959835]
[1739800449104,3.59337,2782.9,2782.7,0.05959835]
[1739800449634,7.18681,2782.9,2782.7,0.05959835]
[1739800449835,7.18682,2782.9,2782.7,0.05959835]
[1739800450237,3.5935,2782.8,2782.7,0.05959835]
[1739800451113,3.59389,2782.5,2782.4,0.1496]
[1739800451318,6.59389,2782.5,2782.4,0.1496]
[1739800452165,3.59377,2782.6,2782.4,0.1496]
[1739800452564,3.59345,2782.9,2782.4,0.1496]
[1739800452746,3.8104,2783.0,2782.5,0.7623]
[1739800452977,6.59331,2783.0,2782.5,4.35607]
[1739800453577,3.59345,2782.9,2782.5,0.7623]
[1739800453736,6.59331,2783.0,2782.5,0.7623]
[1739800453931,10.18668,2783.0,2782.5,0.7623]
[1739800454132,6.59312,2783.1,2782.6,3.59373]
[1739800454383,5.34,2783.3,2782.7,0.7823]
[1739800454682,8.93292,2783.3,2782.8,3.59341]
[1739800455347,5.34,2783.3,2783.1,0.7823]
[1739800455534,3.59287,2783.3,2783.1,0.7823]
[1739800456280,0.005,2783.4,2783.1,0.7823]
[1739800456663,3.59778,2783.4,2783.1,0.7823]
[1739800457001,0.005,2783.4,2783.1,0.7823]
[1739800457646,0.005,2783.4,2783.1,1.579163]
[1739800457866,0.005,2783.4,2783.3,3.59285]
[1739800458077,0.005,2783.4,2783.3,4.34975]
[1739800462602,0.005,2783.4,2783.3,0.7569]
[1739800462769,0.005,2783.4,2783.1,1.82002158]
[1739800462956,0.005,2783.4,2783.1,2.36134874]
[1739800463156,0.005,2783.4,2783.2,0.05900381]
[1739800464222,3.59285,2783.3,2783.2,0.05900381]
[1739800464826,3.593,2783.2,2782.9,0.7896]
[1739800465251,3.59782,2783.4,2782.9,0.7896]
[1739800465455,3.59289,2783.3,2782.9,0.7896]
[1739800465757,3.59289,2783.3,2782.9,1.30045793]
[1739800468515,3.59289,2783.3,2782.9,0.7896]
[1739800469015,4.39649,2783.3,2782.9,0.7896]
[1739800469257,3.59306,2783.2,2782.9,0.7896]
[1739800469557,0.005,2783.4,2782.9,0.7896]
[1739800469766,3.59285,2783.3,2782.9,0.7896]
[1739800469944,7.18581,2783.3,2782.9,0.7896]
[1739800470149,3.59285,2783.3,2782.9,0.7896]
[1739800470460,3.59298,2783.2,2782.9,0.7896]
[1739800470966,4.39008,2783.2,2782.7,4.3251727]
[1739800471145,0.7971,2783.2,2782.7,5.19225097]
[1739800471315,3.59299,2783.2,2782.8,3.59338]
[1739800471515,3.59772,2783.4,2782.9,3.59333]
[1739800471747,3.59772,2783.4,2783.0,0.7905]
[1739800471969,0.005,2783.4,2783.0,4.38373]
[1739800472263,3.59773,2783.4,2783.1,0.438373]
[1739800472860,0.005,2783.4,2783.1,0.438373]
[1739800473365,3.59773,2783.4,2783.1,0.438373]
[1739800474017,3.59773,2783.4,2783.0,0.7905]
[1739800475795,7.19057,2783.4,2783.0,0.7905]
[1739800475972,3.59783,2783.4,2783.0,0.7905]
[1739800476683,0.005,2783.4,2783.0,4.38367]
[1739800476974,0.005,2783.4,2783.0,4.38373]
[1739800477137,3.59773,2783.4,2783.0,4.38373]
[1739800477337,3.59773,2783.4,2783.0,5.181445]
[1739800477656,3.59773,2783.4,2783.0,1.588215]
[1739800478053,3.59773,2783.4,2783.0,5.181445]
[1739800478253,3.59773,2783.4,2783.1,0.05875244]
[1739800479244,3.59294,2783.3,2783.1,0.05875244]
[1739800479889,3.59298,2783.2,2783.1,0.05875244]
[1739800480983,3.59298,2783.2,2782.8,4.36928]
[1739800481146,3.59298,2783.2,2783.1,0.05875244]
[1739800481886,3.59317,2783.1,2782.8,0.7758]
[1739800482470,3.59295,2783.3,2782.8,4.36929]
[1739800482675,3.59295,2783.3,2782.9,3.59336]
[1739800482861,7.18591,2783.3,2782.8,4.36929]
[1739800483091,3.59295,2783.3,2782.9,3.5933]
[1739800483510,3.59292,2783.3,2782.9,3.59337]
[1739800483876,0.006522,2783.4,2782.9,3.59337]
[1739800484080,0.006522,2783.4,2783.0,3.59316]
[1739800484327,3.599272,2783.4,2783.0,4.47630717]
[1739800484527,3.59292,2783.3,2782.8,4.36923]
[1739800485225,3.59292,2783.3,2782.8,0.7758]
[1739800485392,3.59292,2783.3,2782.9,3.59336]
[1739800485723,3.599262,2783.4,2782.9,3.59329]
[1739800485888,3.599262,2783.4,2782.8,0.7758]
[1739800486093,3.59287,2783.3,2782.9,0.50978671]
[1739800486756,3.599262,2783.4,2782.9,0.50978671]
[1739800486897,7.192082,2783.4,2782.9,4.10314671]
[1739800487097,3.599262,2783.4,2782.9,4.10314671]
[1739800487407,3.599282,2783.4,2782.9,0.50978671]
[1739800487608,3.59285,2783.3,2782.9,4.10315671]
[1739800487914,3.599282,2783.4,2783.0,0.48789567]
[1739800488307,3.599282,2783.4,2782.9,3.85988346]
[1739800488698,3.599282,2783.4,2783.0,3.59316]
[1739800489014,0.006522,2783.4,2783.1,3.5931]
[1739800489617,3.599262,2783.4,2783.0,3.59323]
[1739800489823,3.599262,2783.4,2782.8,0.7758]
[1739800489824,0.006522,2783.4,2782.8,0.7758]
[1739800490030,0.006522,2783.4,2783.0,3.59313]
[1739800490210,0.006522,2783.4,2783.0,4.389462]
[1739800490539,0.006522,2783.4,2783.1,3.59303]
[1739800490929,0.006522,2783.4,2783.3,3.59285]
[1739800491097,0.006522,2783.4,2783.3,4.40505]
[1739800491485,0.006522,2783.4,2783.3,0.8122]
[1739800493025,0.006522,2783.4,2783.2,4.31257618]
[1739800493326,0.006522,2783.4,2783.3,3.65152914]
[1739800493682,0.006522,2783.4,2783.3,0.05867914]
[1739800494196,0.006522,2783.4,2783.2,5.1789578]
[1739800494454,0.006522,2783.4,2783.3,0.86107914]
[1739800494651,0.1529962,2784.8,2783.5,0.8687]
[1739800494950,0.1529962,2784.8,2784.7,4.35975]
[1739800495140,0.1529962,2784.8,2784.7,5.154842]
[1739800495335,0.1529962,2784.8,2784.7,1.62151193]
[1739800495555,0.1529962,2784.8,2784.7,0.05771993]
[1739800495908,3.59124,2784.6,2784.1,3.59174]
[1739800496113,7.5771162,2784.8,2784.1,3.59174]
[1739800496308,3.9861962,2784.8,2784.3,3.59144]
[1739800496457,3.9861962,2784.8,2784.3,3.59149]
[1739800496664,4.5771362,2784.8,2784.4,0.05555225]
[1739800497308,4.5771362,2784.8,2784.3,3.59156]
[1739800497309,0.1529962,2784.8,2784.3,3.59156]
[1739800497610,0.1529962,2784.8,2784.5,0.05550976]
[1739800497769,3.7439462,2784.8,2784.4,0.77547164]
[1739800497971,3.7439462,2784.8,2784.6,0.05546728]
[1739800498310,3.7439462,2784.8,2784.7,0.05542479]
[1739800498656,3.7439462,2784.8,2784.4,0.71991939]
[1739800498858,0.1529962,2784.8,2784.7,0.05542479]
[1739800499058,0.1529962,2784.8,2784.6,0.7804]
[1739800499259,0.1529962,2784.8,2784.7,0.05542479]
[1739800499713,0.1529962,2784.8,2784.5,3.59123]
[1739800499909,0.1529962,2784.8,2784.7,0.05542479]
[1739800500118,0.1529962,2784.8,2784.6,0.05546728]
[1739800500281,0.1529962,2784.8,2784.7,0.05542479]
[1739800500809,0.1529962,2784.8,2784.5,4.45947694]
[1739800501108,0.1529962,2784.8,2784.7,3.59105]
[1739800501315,0.1529962,2784.8,2784.7,4.40164042]
[1739800501517,0.1529962,2784.8,2784.7,0.86601521]
[1739800501803,0.1529962,2784.8,2784.7,3.64647479]
[1739800502058,0.1529962,2784.8,2784.7,0.05542479]
[1739800502262,0.1529962,2784.8,2784.7,3.64647479]
[1739800502414,0.1529962,2784.8,2784.7,3.59105]
[1739800502760,0.1529962,2784.8,2784.7,4.42247479]
[1739800503086,0.1529962,2784.8,2784.7,5.22383927]
[1739800503228,0.2,2786.7,2784.7,5.22383927]
[1739800503229,3.7404962,2787.5,2785.6,0.016]
[1739800503411,3.7404962,2787.5,2786.3,3.58891]
[1739800503412,3.58757,2787.4,2786.3,3.58891]
[1739800503611,0.7959,2787.4,2786.0,0.016]
[1739800503838,3.5882,2787.0,2785.7,4.29150312]
[1739800504043,0.7959,2786.9,2785.7,0.70175312]
[1739800504242,0.72498156,2787.3,2785.8,0.05495769]
[1739800504468,3.5895,2785.9,2785.8,0.05495769]
[1739800504668,3.5895,2785.9,2784.7,0.8004]
[1739800504669,3.59077,2785.0,2784.7,0.8004]
[1739800504872,3.59077,2785.0,2784.2,3.59163]
[1739800504873,3.59075,2785.0,2784.2,3.59163]
[1739800505013,3.59075,2785.0,2783.3,3.4821]
[1739800505014,3.59221,2783.8,2783.7,0.8153]
[1739800505206,3.59245,2783.7,2783.3,1.52569842]
[1739800505421,0.8226,2784.2,2783.4,0.239208]
[1739800505644,3.8226,2784.2,2783.4,0.239208]
[1739800505862,3.59197,2784.0,2783.3,5.11852842]
[1739800506063,3.59197,2784.0,2783.3,5.82157615]
[1739800506228,3.59197,2784.0,2783.3,2.22874615]
[1739800506427,3.59197,2784.0,2783.4,3.59271]
[1739800506625,8.6750705,2784.2,2783.3,2.22874615]
[1739800506626,1.2607805,2784.2,2783.6,3.59243]
[1739800506856,1.2607805,2784.2,2783.7,0.359243]
[1739800507150,1.2607805,2784.2,2784.1,3.59182]
[1739800508262,1.2607805,2784.2,2784.1,4.34751095]
[1739800508557,1.2607805,2784.2,2784.1,0.05164089]
[1739800508912,1.2607805,2784.2,2783.8,0.8284]
[1739800509114,4.8524705,2784.2,2784.1,0.05164089]
[1739800509490,3.59196,2784.0,2783.3,0.7642]
[1739800509665,1.2607805,2784.2,2783.3,5.06044262]
[1739800509839,3.59182,2784.1,2783.4,0.05193846]
[1739800510280,3.59229,2783.8,2783.4,0.05193846]
[1739800510485,3.5924,2783.7,2783.4,0.05193846]
[1739800510781,4.8525105,2784.2,2783.4,0.05193846]
[1739800510995,1.2607805,2783.7,2783.6,4.35667]
[1739800511289,1.2607805,2783.7,2783.6,0.7642]
[1739800511435,1.2607805,2783.7,2783.6,0.81700757]
[1739800511837,1.2607805,2783.7,2783.6,4.40947757]
[1739800512078,1.2607805,2783.7,2783.6,0.05280757]
[1739800512493,1.2607805,2783.7,2783.3,0.70340262]
[1739800512640,1.2607805,2783.7,2783.6,0.05280757]
[1739800512842,1.2607805,2783.7,2783.3,0.70340262]
[1739800513167,3.59252,2783.6,2783.4,0.0528926]
[1739800513579,1.2607805,2783.7,2783.2,3.59288]
[1739800513783,1.2607805,2783.7,2783.5,0.05285009]
[1739800514103,1.2607805,2783.7,2783.3,4.032178]
[1739800514284,1.2607805,2783.7,2783.6,0.05280757]
[1739800514595,1.2607805,2783.7,2783.3,4.032178]
[1739800514969,1.2607805,2783.7,2783.4,0.0528926]
[1739800515797,3.59247,2783.6,2783.4,0.0528926]
[1739800515997,1.2607805,2783.7,2783.4,0.0528926]
[1739800516297,7.18512,2783.6,2783.2,0.71767562]
[1739800516480,7.18513,2783.6,2783.2,0.71767562]
[1739800516683,3.59265,2783.5,2783.3,0.05407673]
[1739800517013,4.8534405,2783.5,2783.3,0.05407673]
[1739800517153,4.8534405,2783.5,2783.2,0.71767562]
[1739800517502,4.8534405,2783.5,2783.3,0.05407673]
[1739800517871,1.2607805,2783.5,2783.2,0.71767562]
[1739800518069,4.8533805,2783.5,2783.4,0.05403421]
[1739800518270,4.8533805,2783.5,2783.2,0.71767562]
[1739800518470,1.2607805,2783.5,2783.3,0.05407673]
[1739800518686,1.2607805,2783.5,2783.2,0.71767562]
[1739800518850,1.2607805,2783.5,2783.4,0.05403421]
[1739800519057,4.8533705,2783.5,2783.2,0.71767562]
[1739800519256,4.8533705,2783.5,2783.3,0.05407673]
[1739800519459,1.2607805,2783.5,2783.2,0.71767562]
[1739800519689,4.8533905,2783.5,2783.3,0.05407673]
[1739800519891,1.2607805,2783.5,2783.3,0.05407673]
[1739800520216,1.2607805,2783.5,2783.2,0.71767562]
[1739800520373,3.59285,2783.3,2783.2,0.71767562]
[1739800520558,1.2607805,2783.5,2783.3,0.05407673]
[1739800520763,1.2607805,2783.5,2783.2,0.0522389]
[1739800520963,1.2607805,2783.5,2783.0,3.59314]
[1739800521160,1.2607805,2783.5,2783.3,0.05219638]
[1739800521365,1.2607805,2783.5,2783.3,3.59278]
[1739800521569,1.2607805,2783.5,2783.4,0.0523413]
[1739800524408,1.2607805,2783.5,2783.4,3.6450613]
[1739800524642,1.2607805,2783.5,2783.4,0.0523413]
[1739800524943,1.2607805,2783.5,2783.4,3.6450613]
[1739800525271,1.2607805,2783.5,2783.4,0.92559558]
[1739800525544,1.2607805,2783.5,2783.4,0.0523413]
[1739800525895,4.8533705,2783.5,2783.4,0.0523413]
[1739800526100,1.2607805,2783.5,2783.4,0.0523413]
[1739800526542,4.8533705,2783.5,2783.4,0.0523413]
[1739800527242,4.8533705,2783.5,2783.0,0.40601286]
[1739800527438,1.2607805,2783.5,2782.9,3.87629]
[1739800527645,3.59279,2783.4,2783.0,0.05243525]
[1739800527794,1.2607805,2783.5,2783.0,0.05243525]
[1739800527795,3.59305,2783.2,2783.0,0.05243525]
[1739800527998,4.8538305,2783.2,2782.8,1.50465143]
[1739800528211,3.59313,2783.1,2782.9,0.05247779]
[1739800529042,1.2607805,2783.1,2782.9,0.05247779]
[1739800529241,1.2607805,2783.1,2782.9,3.64583779]
[1739800529409,1.2607805,2783.1,2782.9,4.08367671]
[1739800529616,4.8538905,2783.1,2782.9,0.05247779]
[1739800529796,4.38654,2783.0,2782.9,0.05247779]
[1739800530137,5.6473205,2783.0,2782.5,3.59378]
[1739800530343,5.6473205,2783.0,2782.4,4.20402104]
[1739800530344,1.2607805,2783.0,2782.9,0.05107797]
[1739800530497,1.2607805,2783.0,2782.6,3.59375]
[1739800530698,1.2607805,2783.0,2782.9,0.05107797]
[1739800530894,1.2607805,2783.0,2782.6,4.36993342]
[1739800531135,4.8540205,2783.0,2782.9,0.05107797]
[1739800531341,4.8540205,2783.0,2782.5,3.59389]
[1739800531643,1.2607805,2783.0,2782.5,3.59389]
[1739800531840,1.2607805,2783.0,2782.6,4.01923459]
[1739800532605,4.8540705,2783.0,2782.6,0.42555459]
[1739800532837,1.2607805,2783.0,2782.6,0.42555459]
[1739800533140,1.2607805,2783.0,2782.6,0.05120559]
[1739800533442,3.59337,2782.9,2782.6,0.05120559]
[1739800533639,3.59337,2782.9,2782.4,3.74361]
[1739800533944,1.2607805,2783.0,2782.5,3.64512814]
[1739800534099,1.2607805,2783.0,2782.6,3.59372]
[1739800534305,1.2607805,2783.0,2782.5,0.30587688]
[1739800534643,1.2607805,2783.0,2782.7,0.05116305]
[1739800534644,4.8540905,2783.0,2782.7,0.05116305]
[1739800534940,4.8540905,2783.0,2782.8,0.05112051]
[1739800535443,4.8540905,2783.0,2782.9,0.05107797]
[1739800535942,1.2607805,2783.0,2782.9,0.05107797]
[1739800536101,1.2607805,2783.0,2782.6,0.33279565]
[1739800536102,1.2607805,2783.0,2782.6,3.92648565]
[1739800536302,1.2607805,2783.0,2782.9,0.05107797]
[1739800536544,1.2607805,2783.0,2782.6,5.09409898]
[1739800536715,1.2607805,2783.0,2782.9,0.05107797]
[1739800536912,1.2607805,2783.0,2782.6,5.09409898]
[1739800537097,1.2607805,2783.0,2782.9,0.05107797]
[1739800537299,4.8541005,2783.0,2782.7,0.25462874]
[1739800537543,4.8540205,2783.0,2782.9,0.05107797]
[1739800537709,4.8540205,2783.0,2782.8,0.05112051]
[1739800537918,4.8540205,2783.0,2782.7,0.25462874]
[1739800537919,4.35467,2782.9,2782.7,0.25462874]
[1739800538234,3.5935,2782.8,2782.7,0.58742439]
[1739800538433,3.5935,2782.8,2782.7,0.85404014]
[1739800538630,5.6154505,2782.9,2782.7,0.85404014]
[1739800538838,2.0220805,2782.9,2782.7,0.85404014]
[1739800539221,5.6155705,2782.9,2782.7,0.85404014]
[1739800539427,1.2607805,2782.9,2782.7,0.5994114]
[1739800539638,1.2607805,2782.9,2782.7,4.1930214]
[1739800539804,1.2607805,2782.9,2782.7,1.12391089]
[1739800540146,1.2607805,2782.9,2782.8,3.5935]
[1739800540455,1.2607805,2782.9,2782.7,3.86023575]
[1739800540747,1.2607805,2782.9,2782.8,3.5935]
[1739800540911,1.2607805,2782.9,2782.8,3.84863223]
[1739800541106,1.2607805,2782.9,2782.8,0.25513223]
[1739800541310,1.2607805,2782.9,2782.8,0.74528803]
[1739800541910,1.2607805,2782.9,2782.8,0.85519003]
[1739800542549,5.6146505,2782.9,2782.8,0.85519003]
[1739800542753,8.6146505,2782.9,2782.8,0.85519003]
[1739800543973,8.6146505,2782.9,2782.8,0.25513223]
[1739800544477,3.59389,2782.5,2782.4,0.1496]
[1739800544675,4.38979,2782.5,2782.4,0.20133611]
[1739800545233,8.6505705,2782.5,2782.4,0.20133611]
[1739800545438,8.6505705,2782.5,2782.4,0.1496]
[1739800546175,5.0566805,2782.5,2782.4,0.1496]
[1739800546385,4.2607805,2782.5,2782.4,0.1496]
[1739800546546,1.2607805,2782.5,2782.4,0.20166441]
[1739800548467,4.8546705,2782.5,2782.4,0.20166441]
[1739800549288,9.84463414,2782.5,2782.4,0.20166441]
[1739800549441,9.84463414,2782.5,2782.4,0.20174651]
[1739800549644,5.0729805,2782.5,2782.4,0.20174651]
[1739800549871,2.0729805,2782.5,2782.4,0.1496]
[1739800550075,2.0729805,2782.5,2782.4,0.20175238]
[1739800550076,1.2607805,2782.5,2782.4,0.20175238]
[1739800550860,4.8546705,2782.5,2782.4,0.20175238]
[1739800552193,1.2607805,2782.5,2782.4,0.20175238]
[1739800552693,1.2607805,2782.5,2782.4,0.20174065]
[1739800556294,4.8546705,2782.5,2782.4,0.20174065]
[1739800556591,6.03244014,2782.5,2782.4,0.20174065]
[1739800556797,4.8546705,2782.5,2782.4,0.20174065]
[1739800557689,1.2607805,2782.5,2782.4,0.20174065]
[1739800558314,1.2607805,2782.5,2782.4,0.1496]
[1739800558683,1.2607805,2782.5,2782.4,0.20203962]
[1739800559315,1.2607805,2782.5,2782.4,3.79604962]
[1739800559528,1.2607805,2782.5,2782.4,4.56058395]
[1739800560232,1.2607805,2782.5,2782.4,4.81584764]
[1739800560992,1.2607805,2782.5,2782.4,1.22183764]
[1739800561326,1.2607805,2782.5,2782.4,0.45730331]
[1739800561833,1.2607805,2782.5,2782.4,0.72410464]
[1739800562013,4.8546705,2782.5,2782.4,0.72410464]
[1739800562717,5.6466705,2782.5,2782.4,0.72410464]
[1739800562914,5.6466705,2782.5,2782.4,0.67166502]
[1739800563103,6.90363514,2782.5,2782.4,0.67166502]
[1739800563303,6.90363514,2782.5,2782.4,0.40486369]
[1739800563488,9.90363514,2782.5,2782.4,0.40486369]
[1739800563689,9.90363514,2782.5,2782.4,3.69e-06]
[1739800563929,3.59578,2781.1,2780.2,0.8013]
[1739800564128,0.75,2781.2,2780.3,3.59673]
[1739800564129,4.0792059,2781.2,2780.3,3.59673]
[1739800564426,4.0792059,2781.2,2780.7,3.59612]
[1739800564427,1.859956,2781.2,2780.7,3.59612]
[1739800564634,1.859956,2781.2,2780.8,0.359612]
[1739800564931,1.859956,2781.2,2780.8,0.05107969]
[1739800565226,1.859956,2781.2,2780.8,0.80327969]
[1739800565227,1.109956,2781.2,2780.8,0.80327969]
[1739800565427,1.109956,2781.2,2780.8,0.7522]
[1739800565590,1.109956,2781.2,2780.9,0.05183481]
[1739800565789,3.5957,2781.1,2780.9,0.05183481]
[1739800566146,3.5961,2780.8,2780.2,3.59674]
[1739800566296,3.59607,2780.9,2780.3,3.59665]
[1739800566497,4.706026,2780.9,2780.3,3.59665]
[1739800567120,1.109956,2780.9,2780.4,3.59651]
[1739800567622,1.109956,2780.9,2780.5,3.59643]
[1739800567822,1.109956,2780.9,2780.6,3.59631]
[1739800568238,1.109956,2780.9,2780.2,0.72550606]
[1739800568239,7.19231,2780.8,2780.2,3.59678]
[1739800568540,4.706066,2780.8,2780.7,0.05209022]
[1739800568706,4.706066,2780.8,2779.9,0.279]
[1739800568707,1.109956,2780.8,2779.9,0.279]
[1739800568913,1.109956,2780.8,2780.7,0.05209022]
[1739800569143,2.38279882,2780.8,2780.3,3.59671]
[1739800569330,1.109956,2780.8,2780.7,0.05209022]
[1739800569582,1.109956,2780.8,2780.3,3.59671]
[1739800569838,3.5964,2780.6,2780.1,3.59698]
[1739800570045,0.7725,2780.7,2780.2,3.59675]
[1739800570223,0.7725,2780.7,2780.4,3.59659]
[1739800570429,1.109956,2780.8,2780.4,3.59652]
[1739800570617,1.109956,2780.7,2780.4,3.59648]
[1739800571722,1.109956,2780.7,2780.4,3.59653]
[1739800572538,1.109956,2780.7,2780.6,3.59634]
[1739800572706,1.109956,2780.7,2780.1,3.59692]
[1739800572911,1.109956,2780.7,2780.4,3.5965]
[1739800573440,1.109956,2780.7,2780.2,3.59683]
[1739800573646,1.109956,2780.7,2780.2,3.59678]
[1739800573947,0.7664,2780.6,2780.2,3.59678]
[1739800574241,0.7664,2780.6,2779.9,0.72348945]
[1739800574242,4.36281,2780.6,2779.9,0.72348945]
[1739800574445,3.5965,2780.5,2780.0,3.59705]
[1739800575048,3.59668,2780.4,2779.9,0.72348945]
[1739800575438,3.5968,2780.3,2779.9,0.72348945]
[1739800575747,0.7791,2780.2,2779.9,0.72348945]
[1739800575952,3.59709,2780.1,2779.4,0.7663]
[1739800576446,3.59704,2780.1,2779.6,3.59756]
[1739800576649,1.109956,2780.1,2779.4,0.7663]
[1739800576818,3.59731,2779.9,2779.3,3.59794]
[1739800577148,3.59739,2779.8,2779.3,3.59791]
[1739800577308,0.4707266,2779.9,2779.3,0.72103282]
[1739800577648,1.109956,2779.9,2779.3,4.31894282]
[1739800577852,1.109956,2779.9,2779.7,3.59741]
[1739800578350,1.109956,2779.9,2779.8,3.59738]
[1739800578719,1.109956,2779.9,2779.8,4.37228]
[1739800581770,1.109956,2779.9,2779.8,4.63779496]
[1739800581927,1.109956,2779.9,2779.8,5.46131546]
[1739800583344,1.109956,2779.9,2779.8,5.98072347]
[1739800583856,1.109956,2779.9,2779.8,6.23440477]
[1739800586984,1.109956,2779.9,2779.8,1.03860427]
[1739800587147,1.917156,2779.9,2779.8,1.03860427]
[1739800587551,1.109956,2779.9,2779.8,4.63598427]
[1739800587746,1.109956,2779.9,2779.8,5.43318427]
[1739800588777,1.109956,2779.9,2779.8,5.71118427]
[1739800588778,6e-06,2779.9,2779.8,5.71118427]
[1739800588959,6e-06,2779.9,2779.8,13.01241611]
[1739800589165,6e-06,2779.9,2779.8,13.52644634]
[1739800589483,6e-06,2779.9,2779.8,24.3920527]
[1739800589639,0.8316,2781.8,2780.1,0.8325]
[1739800589838,0.8316,2781.8,2781.5,3.5951]
[1739800589839,1.26328181,2781.8,2781.5,3.5951]
[1739800590038,0.8316,2781.8,2781.6,0.05312718]
[1739800590378,0.1508245,2782.0,2781.6,0.05312718]
[1739800590584,0.1508245,2782.0,2781.9,3.59466]
[1739800590940,0.1508245,2782.0,2781.9,3.64765947]
[1739800592640,0.1508245,2782.0,2781.9,0.3069496]
[1739800594143,0.1508245,2782.0,2781.9,0.05299947]
[1739800594473,0.1508245,2782.0,2781.7,3.59491]
[1739800594841,0.1508245,2782.0,2781.8,3.645745]
[1739800595043,0.1508245,2782.0,2781.8,0.051035]
[1739800595275,0.1508245,2782.0,2781.8,3.59478]
[1739800595455,0.1508245,2782.0,2781.9,0.05099243]
[1739800595657,0.1508245,2782.0,2781.6,4.31101008]
[1739800595877,0.1508245,2782.0,2781.8,3.59472]
[1739800596187,0.1508245,2782.0,2781.9,0.05099243]
[1739800596553,0.1508245,2782.0,2781.5,3.59509]
[1739800596797,0.1508245,2782.0,2781.9,0.05115665]
[1739800596995,0.1508245,2782.0,2781.5,7.19019]
[1739800597160,0.1508245,2782.0,2781.9,0.05113319]
[1739800597365,0.1508245,2782.0,2781.5,3.59509]
[1739800597705,4.19697095,2782.0,2781.3,3.59531]
[1739800597854,3.59477,2781.9,2781.3,3.59531]
[1739800598050,3.59477,2781.9,2781.4,0.05134606]
[1739800598754,0.7598,2781.7,2781.4,0.05134606]
[1739800599189,3.59518,2781.5,2781.4,0.05134606]
[1739800599488,0.79499,2781.5,2780.9,3.59589]
[1739800599688,4.39018,2781.5,2780.9,7.19173]
[1739800599890,3.59534,2781.4,2781.0,0.05151642]